[Event "Titled Tuesday Blitz June 21 Late 2022"]
[White "Navarrete Mendez, Gonzalo Alberto"]
[Black "Urbina Perez, Juan Antonio"]
[WhiteFideId "5106850"]
[BlackFideId "2217368"]
[WhiteElo "2261"]
[BlackElo "2192"]
[Result "1/2-1/2"]
[Round "11"]
[TimeControl "180+1"]
[Date "2022.06.22"]
[WhiteClock "0:00:20"]
[BlackClock "0:01:07"]

1. e4 {[%clk 0:03:00]}  e5 {[%clk 0:02:57]} 2. Nf3 {[%clk 0:03:00]}  Nf6 {[%clk 0:02:58]} 3. Nc3 {[%clk 0:03:00]}  Nc6 {[%clk 0:02:57]} 4. Bb5 {[%clk 0:02:59]}  Bb4 {[%clk 0:02:57]} 5. O-O {[%clk 0:02:59]}  O-O {[%clk 0:02:57]} 6. d4 {[%clk 0:02:59]}  exd4 {[%clk 0:02:50]} 7. Nd5 {[%clk 0:02:59]}  Nxd5 {[%clk 0:02:42]} 8. exd5 {[%clk 0:02:59]}  Ne7 {[%clk 0:02:42]} 9. Qxd4 {[%clk 0:02:58]}  Bd6 {[%clk 0:02:40]} 10. Bd3 {[%clk 0:02:58]}  Ng6 {[%clk 0:02:36]} 11. Qg4 {[%clk 0:02:53]}  Be7 {[%clk 0:02:32]} 12. Qh5 {[%clk 0:02:49]}  d6 {[%clk 0:02:22]} 13. Re1 {[%clk 0:02:45]}  Bf6 {[%clk 0:02:22]} 14. Ng5 {[%clk 0:02:42]}  Bxg5 {[%clk 0:02:14]} 15. Bxg5 {[%clk 0:02:43]}  Qd7 {[%clk 0:02:13]} 16. Re7 {[%clk 0:02:26]}  Qg4 {[%clk 0:02:03]} 17. Qxg4 {[%clk 0:02:24]}  Bxg4 {[%clk 0:02:04]} 18. Rxc7 {[%clk 0:02:24]}  Ne5 {[%clk 0:02:01]} 19. Be7 {[%clk 0:02:15]}  Rfc8 {[%clk 0:01:56]} 20. Bxd6 {[%clk 0:02:10]}  Nxd3 {[%clk 0:01:55]} 21. cxd3 {[%clk 0:02:09]}  Rd8 {[%clk 0:01:54]} 22. h3 {[%clk 0:01:36]}  Bf5 {[%clk 0:01:49]} 23. Bf4 {[%clk 0:01:21]}  Rxd5 {[%clk 0:01:47]} 24. Rxb7 {[%clk 0:01:20]}  Rxd3 {[%clk 0:01:43]} 25. Be3 {[%clk 0:01:16]}  a6 {[%clk 0:01:41]} 26. Rc1 {[%clk 0:01:16]}  h6 {[%clk 0:01:40]} 27. Kf1 {[%clk 0:01:10]}  Be6 {[%clk 0:01:38]} 28. b3 {[%clk 0:01:05]}  Rd7 {[%clk 0:01:31]} 29. Rcc7 {[%clk 0:01:01]}  Rxc7 {[%clk 0:01:31]} 30. Rxc7 {[%clk 0:01:02]}  a5 {[%clk 0:01:31]} 31. Ra7 {[%clk 0:00:57]}  Rxa7 {[%clk 0:01:30]} 32. Bxa7 {[%clk 0:00:58]}  a4 {[%clk 0:01:14]} 33. bxa4 {[%clk 0:00:58]}  Bxa2 {[%clk 0:01:14]} 34. Ke2 {[%clk 0:00:56]}  Kf8 {[%clk 0:01:13]} 35. Ke3 {[%clk 0:00:55]}  Ke8 {[%clk 0:01:14]} 36. Bc5 {[%clk 0:00:53]}  g6 {[%clk 0:01:13]} 37. g3 {[%clk 0:00:52]}  Be6 {[%clk 0:01:09]} 38. h4 {[%clk 0:00:52]}  h5 {[%clk 0:01:06]} 39. Kd4 {[%clk 0:00:48]}  Kd7 {[%clk 0:01:06]} 40. Ke5 {[%clk 0:00:47]}  Kc6 {[%clk 0:01:06]} 41. Be3 {[%clk 0:00:43]}  Bb3 {[%clk 0:01:00]} 42. a5 {[%clk 0:00:43]}  Kb5 {[%clk 0:01:00]} 43. Bd2 {[%clk 0:00:41]}  Be6 {[%clk 0:00:58]} 44. Kf4 {[%clk 0:00:41]}  Bd5 {[%clk 0:00:57]} 45. Kg5 {[%clk 0:00:38]}  Bc6 {[%clk 0:00:53]} 46. Kf6 {[%clk 0:00:38]}  Bd5 {[%clk 0:00:53]} 47. Ke5 {[%clk 0:00:37]}  Bc4 {[%clk 0:00:53]} 48. Kf4 {[%clk 0:00:38]}  Bd5 {[%clk 0:00:53]} 49. f3 {[%clk 0:00:38]}  Bc6 {[%clk 0:00:52]} 50. g4 {[%clk 0:00:38]}  Bd5 {[%clk 0:00:50]} 51. Be1 {[%clk 0:00:26]}  Bc6 {[%clk 0:00:49]} 52. Ke3 {[%clk 0:00:22]}  Bd5 {[%clk 0:00:47]} 53. Kf4 {[%clk 0:00:15]}  Bc6 {[%clk 0:00:47]} 54. gxh5 {[%clk 0:00:13]}  gxh5 {[%clk 0:00:46]} 55. Ke3 {[%clk 0:00:13]}  Bd5 {[%clk 0:00:46]} 56. f4 {[%clk 0:00:13]}  f5 {[%clk 0:00:44]} 57. Kd4 {[%clk 0:00:14]}  Bf3 {[%clk 0:00:44]} 58. Ke5 {[%clk 0:00:14]}  Bg4 {[%clk 0:00:44]} 59. Kd6 {[%clk 0:00:13]}  Ka6 {[%clk 0:00:45]} 60. Kc6 {[%clk 0:00:13]}  Bf3+ {[%clk 0:00:45]} 61. Kc5 {[%clk 0:00:13]}  Bg4 {[%clk 0:00:46]} 62. Kd4 {[%clk 0:00:12]}  Bf3 {[%clk 0:00:47]} 63. Ke5 {[%clk 0:00:12]}  Bg4 {[%clk 0:00:48]} 64. Kf6 {[%clk 0:00:13]}  Kb7 {[%clk 0:00:49]} 65. Ke7 {[%clk 0:00:12]}  Ka6 {[%clk 0:00:50]} 66. Kd6 {[%clk 0:00:12]}  Kb5 {[%clk 0:00:51]} 67. Kc7 {[%clk 0:00:12]}  Ka6 {[%clk 0:00:52]} 68. Kb8 {[%clk 0:00:13]}  Bf3 {[%clk 0:00:52]} 69. Bf2 {[%clk 0:00:12]}  Bg4 {[%clk 0:00:53]} 70. Bb6 {[%clk 0:00:12]}  Bf3 {[%clk 0:00:54]} 71. Kc7 {[%clk 0:00:13]}  Bg4 {[%clk 0:00:55]} 72. Kd6 {[%clk 0:00:13]}  Bf3 {[%clk 0:00:56]} 73. Ke5 {[%clk 0:00:14]}  Bg4 {[%clk 0:00:57]} 74. Kf6 {[%clk 0:00:14]}  Kb7 {[%clk 0:00:57]} 75. Ke5 {[%clk 0:00:14]}  Ka6 {[%clk 0:00:58]} 76. Bd8 {[%clk 0:00:14]}  Kb7 {[%clk 0:00:58]} 77. Kd6 {[%clk 0:00:13]}  Ka6 {[%clk 0:00:59]} 78. Bb6 {[%clk 0:00:14]}  Bh3 {[%clk 0:01:00]} 79. Ke6 {[%clk 0:00:14]}  Bg4 {[%clk 0:01:00]} 80. Kf6 {[%clk 0:00:14]}  Kb7 {[%clk 0:01:01]} 81. Kg6 {[%clk 0:00:15]}  Ka6 {[%clk 0:01:02]} 82. Kg5 {[%clk 0:00:15]}  Kb7 {[%clk 0:01:01]} 83. Bd4 {[%clk 0:00:15]}  Ka6 {[%clk 0:01:02]} 84. Bc3 {[%clk 0:00:16]}  Kb7 {[%clk 0:01:02]} 85. Bd2 {[%clk 0:00:16]}  Ka6 {[%clk 0:01:02]} 86. Kf6 {[%clk 0:00:17]}  Kb7 {[%clk 0:01:02]} 87. Ke7 {[%clk 0:00:17]}  Ka6 {[%clk 0:01:03]} 88. Kd6 {[%clk 0:00:18]}  Bh3 {[%clk 0:01:03]} 89. Kc5 {[%clk 0:00:18]}  Bg4 {[%clk 0:01:04]} 90. Kb4 {[%clk 0:00:18]}  Bh3 {[%clk 0:01:04]} 91. Be3 {[%clk 0:00:19]}  Bg4 {[%clk 0:01:05]} 92. Bb6 {[%clk 0:00:19]}  Bh3 {[%clk 0:01:06]} 93. Kc5 {[%clk 0:00:20]}  Bg4 {[%clk 0:01:07]} 94. Kd6 {[%clk 0:00:20]} 1/2-1/2


[Site "https://www.chess.com"]

[Event "Titled Tuesday Blitz June 21 Late 2022"]
[White "Rama, Tejas"]
[Black "Araujo Filho, Luiz Antonio Coel"]
[WhiteFideId "30907381"]
[BlackFideId "2130661"]
[WhiteElo "1430"]
[BlackElo "2180"]
[Result "1-0"]
[Round "11"]
[TimeControl "180+1"]
[Date "2022.06.22"]
[WhiteClock "0:01:06"]
[BlackClock "0:01:52"]

1. d4 {[%clk 0:03:00]}  f5 {[%clk 0:02:59]} 2. c4 {[%clk 0:03:00]}  Nf6 {[%clk 0:02:59]} 3. g3 {[%clk 0:03:00]}  g6 {[%clk 0:02:59]} 4. Bg2 {[%clk 0:03:00]}  Bg7 {[%clk 0:03:00]} 5. Nf3 {[%clk 0:03:00]}  O-O {[%clk 0:03:00]} 6. O-O {[%clk 0:03:01]}  d6 {[%clk 0:03:01]} 7. Nc3 {[%clk 0:03:01]}  Nc6 {[%clk 0:03:01]} 8. d5 {[%clk 0:03:00]}  Na5 {[%clk 0:03:02]} 9. Qa4 {[%clk 0:02:49]}  c5 {[%clk 0:03:02]} 10. dxc6 {[%clk 0:02:48]}  Nxc6 {[%clk 0:03:00]} 11. Rd1 {[%clk 0:02:42]}  Bd7 {[%clk 0:02:51]} 12. Qb3 {[%clk 0:01:53]}  Kh8 {[%clk 0:02:16]} 13. Be3 {[%clk 0:01:23]}  Na5 {[%clk 0:02:09]} 14. Qb4 {[%clk 0:01:17]}  Qc8 {[%clk 0:01:52]} 15. Qxa5 {[%clk 0:01:06]} 1-0


[Site "https://www.chess.com"]

[Event "Titled Tuesday Blitz June 21 Late 2022"]
[White "Romanchuk, Viktor"]
[Black "Gallegos Diaz, Carlos Alberto"]
[WhiteFideId "14109271"]
[BlackFideId "3900886"]
[WhiteElo "2242"]
[BlackElo "2362"]
[Result "1-0"]
[Round "11"]
[TimeControl "180+1"]
[Date "2022.06.22"]
[WhiteClock "0:00:36"]
[BlackClock "0:00:19"]

1. d4 {[%clk 0:03:00]}  d6 {[%clk 0:02:59]} 2. c4 {[%clk 0:03:00]}  Nf6 {[%clk 0:02:59]} 3. Nf3 {[%clk 0:03:00]}  Nbd7 {[%clk 0:02:58]} 4. g3 {[%clk 0:03:00]}  e5 {[%clk 0:02:58]} 5. Nc3 {[%clk 0:02:59]}  Be7 {[%clk 0:02:58]} 6. Bg2 {[%clk 0:03:00]}  O-O {[%clk 0:02:58]} 7. O-O {[%clk 0:03:00]}  c6 {[%clk 0:02:57]} 8. e4 {[%clk 0:03:00]}  exd4 {[%clk 0:02:57]} 9. Nxd4 {[%clk 0:03:00]}  Ne5 {[%clk 0:02:58]} 10. b3 {[%clk 0:03:00]}  Qa5 {[%clk 0:02:56]} 11. Bb2 {[%clk 0:02:57]}  Qb6 {[%clk 0:02:54]} 12. h3 {[%clk 0:02:53]}  Nxc4 {[%clk 0:02:47]} 13. Na4 {[%clk 0:02:49]}  Nxb2 {[%clk 0:02:44]} 14. Nxb6 {[%clk 0:02:49]}  Nxd1 {[%clk 0:02:43]} 15. Nxa8 {[%clk 0:02:49]}  Nb2 {[%clk 0:02:40]} 16. Nc7 {[%clk 0:02:25]}  Bd8 {[%clk 0:02:36]} 17. Na6 {[%clk 0:02:17]}  bxa6 {[%clk 0:02:33]} 18. Nxc6 {[%clk 0:02:17]}  Bb6 {[%clk 0:02:25]} 19. Rac1 {[%clk 0:02:07]}  Be6 {[%clk 0:02:18]} 20. Rc3 {[%clk 0:02:06]}  Bd7 {[%clk 0:01:31]} 21. e5 {[%clk 0:01:41]}  dxe5 {[%clk 0:01:28]} 22. Nxe5 {[%clk 0:01:41]}  Bf5 {[%clk 0:01:23]} 23. Nc6 {[%clk 0:01:38]}  Re8 {[%clk 0:01:10]} 24. g4 {[%clk 0:01:32]}  Bd3 {[%clk 0:00:48]} 25. Rfc1 {[%clk 0:00:59]}  h6 {[%clk 0:00:46]} 26. Bf1 {[%clk 0:00:56]}  Be4 {[%clk 0:00:28]} 27. Re1 {[%clk 0:00:46]}  Re6 {[%clk 0:00:19]} 28. Nb4 {[%clk 0:00:36]}  Ba5 {[%clk 0:00:19]} 29. Rc8+ {[%clk 0:00:35]}  Kh7 {[%clk 0:00:19]} 30. a3 {[%clk 0:00:36]}  Bxb4 {[%clk 0:00:19]} 31. axb4 {[%clk 0:00:36]}  Nd3 {[%clk 0:00:19]} 32. Rxe4 {[%clk 0:00:35]}  Rxe4 {[%clk 0:00:19]} 33. Bxd3 {[%clk 0:00:36]} 1-0


[Site "https://www.chess.com"]

[Event "Titled Tuesday Blitz June 21 Late 2022"]
[White "Rustemov, Alexander"]
[Black "Yurovskykh, Oleksandr"]
[WhiteFideId "4119002"]
[BlackFideId "14134020"]
[WhiteElo "2742"]
[BlackElo "2292"]
[Result "1-0"]
[Round "11"]
[TimeControl "180+1"]
[Date "2022.06.21"]
[WhiteClock "0:01:16"]
[BlackClock "0:00:15"]

1. d4 {[%clk 0:03:00]}  Nf6 {[%clk 0:02:58]} 2. c4 {[%clk 0:03:00]}  e6 {[%clk 0:02:59]} 3. Nf3 {[%clk 0:03:00]}  d5 {[%clk 0:03:00]} 4. Nc3 {[%clk 0:02:59]}  c5 {[%clk 0:03:00]} 5. cxd5 {[%clk 0:02:59]}  Nxd5 {[%clk 0:03:01]} 6. g3 {[%clk 0:02:59]}  Nxc3 {[%clk 0:03:00]} 7. bxc3 {[%clk 0:02:59]}  cxd4 {[%clk 0:03:00]} 8. Qxd4 {[%clk 0:02:59]}  Nc6 {[%clk 0:02:56]} 9. Qxd8+ {[%clk 0:02:58]}  Nxd8 {[%clk 0:02:55]} 10. Bg2 {[%clk 0:02:58]}  Bd7 {[%clk 0:02:51]} 11. Ne5 {[%clk 0:02:56]}  Bc6 {[%clk 0:02:50]} 12. Nxc6 {[%clk 0:02:55]}  Nxc6 {[%clk 0:02:50]} 13. Rb1 {[%clk 0:02:51]}  O-O-O {[%clk 0:02:50]} 14. Bxc6 {[%clk 0:02:42]}  bxc6 {[%clk 0:02:50]} 15. Be3 {[%clk 0:02:43]}  c5 {[%clk 0:02:37]} 16. Rb5 {[%clk 0:02:38]}  Kc7 {[%clk 0:01:58]} 17. O-O {[%clk 0:02:33]}  a6 {[%clk 0:01:53]} 18. Ra5 {[%clk 0:02:31]}  Kb6 {[%clk 0:01:46]} 19. Ra3 {[%clk 0:02:26]}  Ra8 {[%clk 0:01:46]} 20. Rb1+ {[%clk 0:02:24]}  Kc6 {[%clk 0:01:47]} 21. Rab3 {[%clk 0:02:20]}  Be7 {[%clk 0:01:40]} 22. Rb7 {[%clk 0:02:18]}  Bd8 {[%clk 0:00:54]} 23. Rxf7 {[%clk 0:02:13]}  Ba5 {[%clk 0:00:54]} 24. c4 {[%clk 0:02:00]}  Bc3 {[%clk 0:00:48]} 25. Rbb7 {[%clk 0:01:56]}  Rac8 {[%clk 0:00:41]} 26. Rbe7 {[%clk 0:01:40]}  Rhd8 {[%clk 0:00:29]} 27. Rxe6+ {[%clk 0:01:38]}  Rd6 {[%clk 0:00:28]} 28. Rxd6+ {[%clk 0:01:35]}  Kxd6 {[%clk 0:00:29]} 29. Ra7 {[%clk 0:01:35]}  Rc6 {[%clk 0:00:26]} 30. Kg2 {[%clk 0:01:33]}  Bd4 {[%clk 0:00:24]} 31. Kf3 {[%clk 0:01:31]}  h5 {[%clk 0:00:20]} 32. Ke4 {[%clk 0:01:31]}  Bxe3 {[%clk 0:00:20]} 33. Kxe3 {[%clk 0:01:30]}  g6 {[%clk 0:00:19]} 34. a4 {[%clk 0:01:23]}  Ke5 {[%clk 0:00:18]} 35. f4+ {[%clk 0:01:20]}  Kf5 {[%clk 0:00:18]} 36. Kf3 {[%clk 0:01:21]}  Re6 {[%clk 0:00:17]} 37. e4+ {[%clk 0:01:19]}  Kf6 {[%clk 0:00:15]} 38. e5+ {[%clk 0:01:16]} 1-0


[Site "https://www.chess.com"]

[Event "Titled Tuesday Blitz June 21 Late 2022"]
[White "Barria Santos, Jose Guilherme"]
[Black "Nilsson, Joakim"]
[WhiteFideId "1939300"]
[BlackFideId "1723383"]
[WhiteElo "2261"]
[BlackElo "2210"]
[Result "0-1"]
[Round "11"]
[TimeControl "180+1"]
[Date "2022.06.21"]
[WhiteClock "0:00:04"]
[BlackClock "0:00:09"]

1. e4 {[%clk 0:03:00]}  c5 {[%clk 0:02:59]} 2. Nf3 {[%clk 0:03:00]}  e6 {[%clk 0:02:59]} 3. d4 {[%clk 0:03:00]}  cxd4 {[%clk 0:03:00]} 4. Nxd4 {[%clk 0:03:01]}  Nc6 {[%clk 0:03:00]} 5. Nc3 {[%clk 0:03:01]}  Qc7 {[%clk 0:03:01]} 6. Be3 {[%clk 0:03:00]}  a6 {[%clk 0:03:01]} 7. f3 {[%clk 0:02:58]}  Nf6 {[%clk 0:03:01]} 8. Qd2 {[%clk 0:02:56]}  Be7 {[%clk 0:03:01]} 9. O-O-O {[%clk 0:02:49]}  O-O {[%clk 0:03:00]} 10. g4 {[%clk 0:02:48]}  b5 {[%clk 0:03:00]} 11. Kb1 {[%clk 0:02:42]}  Nxd4 {[%clk 0:02:58]} 12. Bxd4 {[%clk 0:02:38]}  Bb7 {[%clk 0:02:59]} 13. h4 {[%clk 0:02:30]}  d5 {[%clk 0:02:55]} 14. e5 {[%clk 0:02:29]}  Nd7 {[%clk 0:02:55]} 15. f4 {[%clk 0:02:24]}  b4 {[%clk 0:02:48]} 16. Ne2 {[%clk 0:02:23]}  Nc5 {[%clk 0:02:48]} 17. Bg2 {[%clk 0:02:23]}  Ne4 {[%clk 0:02:47]} 18. Qe3 {[%clk 0:02:17]}  Rfc8 {[%clk 0:02:45]} 19. Rc1 {[%clk 0:02:17]}  Bc5 {[%clk 0:02:42]} 20. h5 {[%clk 0:02:08]}  Rab8 {[%clk 0:02:40]} 21. g5 {[%clk 0:02:07]}  a5 {[%clk 0:02:36]} 22. g6 {[%clk 0:02:06]}  fxg6 {[%clk 0:02:36]} 23. hxg6 {[%clk 0:02:06]}  h6 {[%clk 0:02:37]} 24. Bh3 {[%clk 0:02:00]}  Qb6 {[%clk 0:02:36]} 25. Bxc5 {[%clk 0:01:59]}  Rxc5 {[%clk 0:02:35]} 26. Nd4 {[%clk 0:01:57]}  Bc8 {[%clk 0:02:29]} 27. Ka1 {[%clk 0:01:52]}  Rc4 {[%clk 0:02:12]} 28. Rhd1 {[%clk 0:01:46]}  a4 {[%clk 0:02:10]} 29. Bf1 {[%clk 0:01:43]}  Rc7 {[%clk 0:02:03]} 30. Bg2 {[%clk 0:01:42]}  a3 {[%clk 0:02:00]} 31. Bxe4 {[%clk 0:01:33]}  axb2+ {[%clk 0:01:59]} 32. Kxb2 {[%clk 0:01:34]}  dxe4 {[%clk 0:02:00]} 33. Qxe4 {[%clk 0:01:22]}  Bb7 {[%clk 0:01:59]} 34. Qe2 {[%clk 0:01:15]}  Bd5 {[%clk 0:01:57]} 35. Nb3 {[%clk 0:01:07]}  Qa7 {[%clk 0:01:44]} 36. Rxd5 {[%clk 0:01:07]}  exd5 {[%clk 0:01:41]} 37. Qd3 {[%clk 0:01:06]}  Qa3+ {[%clk 0:01:40]} 38. Kb1 {[%clk 0:01:03]}  Ra7 {[%clk 0:01:28]} 39. Qxd5+ {[%clk 0:00:56]}  Kh8 {[%clk 0:01:28]} 40. Rd1 {[%clk 0:00:57]}  Qxa2+ {[%clk 0:01:27]} 41. Kc1 {[%clk 0:00:57]}  Qa3+ {[%clk 0:01:21]} 42. Kb1 {[%clk 0:00:54]}  Raa8 {[%clk 0:01:19]} 43. Rd4 {[%clk 0:00:48]}  Qa2+ {[%clk 0:01:16]} 44. Kc1 {[%clk 0:00:48]}  Qa6 {[%clk 0:01:14]} 45. e6 {[%clk 0:00:36]}  Qf1+ {[%clk 0:01:10]} 46. Kb2 {[%clk 0:00:34]}  Rc8 {[%clk 0:01:08]} 47. Qe4 {[%clk 0:00:18]}  Ra3 {[%clk 0:00:57]} 48. Qd3 {[%clk 0:00:13]}  Rxb3+ {[%clk 0:00:44]} 49. Kxb3 {[%clk 0:00:08]}  Qb1+ {[%clk 0:00:43]} 50. Ka4 {[%clk 0:00:08]}  Qa2+ {[%clk 0:00:41]} 51. Kb5 {[%clk 0:00:06]}  Rb8+ {[%clk 0:00:38]} 52. Kc6 {[%clk 0:00:06]}  Qxe6+ {[%clk 0:00:37]} 53. Rd6 {[%clk 0:00:05]}  Qe8+ {[%clk 0:00:37]} 54. Kd5 {[%clk 0:00:04]}  Rd8 {[%clk 0:00:21]} 55. Kc4 {[%clk 0:00:02]}  Rc8+ {[%clk 0:00:14]} 56. Kd5 {[%clk 0:00:01]}  Qg8+ {[%clk 0:00:09]} 57. Kd4 {[%clk 0:00:01]}  Qf8 {[%clk 0:00:09]} 58. Ke3 {[%clk 0:00:02]}  Re8+ {[%clk 0:00:09]} 59. Kf3 {[%clk 0:00:03]}  Qe7 {[%clk 0:00:09]} 60. Rd4 {[%clk 0:00:03]}  Qh4 {[%clk 0:00:08]} 61. Qf1 {[%clk 0:00:02]}  Qh5+ {[%clk 0:00:08]} 62. Kf2 {[%clk 0:00:02]}  Qxg6 {[%clk 0:00:09]} 63. Qg2 {[%clk 0:00:03]}  Qe6 {[%clk 0:00:09]} 64. Qf3 {[%clk 0:00:02]}  Qe1+ {[%clk 0:00:10]} 65. Kg2 {[%clk 0:00:02]}  Re2+ {[%clk 0:00:10]} 66. Kh3 {[%clk 0:00:03]}  Re3 {[%clk 0:00:09]} 67. Rd8+ {[%clk 0:00:04]}  Kh7 {[%clk 0:00:09]} 68. Rd3 {[%clk 0:00:04]}  Rxf3+ {[%clk 0:00:09]} 0-1


[Site "https://www.chess.com"]

[Event "Titled Tuesday Blitz June 21 Late 2022"]
[White "Shimanov, Aleksandr"]
[Black "Guz, Ari"]
[WhiteFideId "4198603"]
[BlackFideId "2825759"]
[WhiteElo "2605"]
[BlackElo "1913"]
[Result "1-0"]
[Round "11"]
[TimeControl "180+1"]
[Date "2022.06.21"]
[WhiteClock "0:00:23"]
[BlackClock "0:00:07"]

1. e4 {[%clk 0:03:00]}  c5 {[%clk 0:02:56]} 2. Nf3 {[%clk 0:03:00]}  e6 {[%clk 0:02:56]} 3. c3 {[%clk 0:02:58]}  d5 {[%clk 0:02:56]} 4. e5 {[%clk 0:02:58]}  d4 {[%clk 0:02:54]} 5. Bd3 {[%clk 0:02:57]}  Nc6 {[%clk 0:02:54]} 6. O-O {[%clk 0:02:56]}  Nge7 {[%clk 0:02:55]} 7. Na3 {[%clk 0:02:54]}  Ng6 {[%clk 0:02:55]} 8. Re1 {[%clk 0:02:54]}  Be7 {[%clk 0:02:53]} 9. g3 {[%clk 0:02:48]}  Qc7 {[%clk 0:02:48]} 10. Qe2 {[%clk 0:02:46]}  a6 {[%clk 0:02:48]} 11. h4 {[%clk 0:02:43]}  b5 {[%clk 0:02:47]} 12. h5 {[%clk 0:02:42]}  Nf8 {[%clk 0:02:46]} 13. c4 {[%clk 0:02:43]}  b4 {[%clk 0:02:44]} 14. Nb1 {[%clk 0:02:38]}  Bb7 {[%clk 0:02:43]} 15. Be4 {[%clk 0:02:38]}  Nd7 {[%clk 0:02:43]} 16. d3 {[%clk 0:02:38]}  g6 {[%clk 0:02:36]} 17. h6 {[%clk 0:02:36]}  O-O-O {[%clk 0:02:30]} 18. Bg5 {[%clk 0:02:32]}  Bxg5 {[%clk 0:02:20]} 19. Nxg5 {[%clk 0:02:31]}  Ndxe5 {[%clk 0:02:14]} 20. f4 {[%clk 0:02:30]}  Qe7 {[%clk 0:02:11]} 21. Qg2 {[%clk 0:02:17]}  Kc7 {[%clk 0:01:49]} 22. Nd2 {[%clk 0:01:54]}  Ng4 {[%clk 0:01:40]} 23. Nf1 {[%clk 0:01:50]}  f6 {[%clk 0:01:30]} 24. Qh3 {[%clk 0:01:35]}  fxg5 {[%clk 0:01:15]} 25. Qxg4 {[%clk 0:01:34]}  gxf4 {[%clk 0:01:15]} 26. gxf4 {[%clk 0:01:33]}  Rd6 {[%clk 0:01:00]} 27. Nh2 {[%clk 0:01:24]}  Rf8 {[%clk 0:00:57]} 28. Qg5 {[%clk 0:01:16]}  Qf7 {[%clk 0:00:43]} 29. Rf1 {[%clk 0:01:15]}  Kb6 {[%clk 0:00:41]} 30. Ng4 {[%clk 0:01:15]}  Qe7 {[%clk 0:00:33]} 31. Rae1 {[%clk 0:01:14]}  Qxg5 {[%clk 0:00:22]} 32. fxg5 {[%clk 0:01:14]}  Rxf1+ {[%clk 0:00:23]} 33. Rxf1 {[%clk 0:01:10]}  Rd7 {[%clk 0:00:23]} 34. Bxc6 {[%clk 0:01:05]}  Bxc6 {[%clk 0:00:23]} 35. Ne5 {[%clk 0:01:05]}  Re7 {[%clk 0:00:20]} 36. Rf8 {[%clk 0:01:05]}  Be8 {[%clk 0:00:19]} 37. Kf2 {[%clk 0:01:01]}  Kc7 {[%clk 0:00:18]} 38. Kg3 {[%clk 0:01:02]}  Kd6 {[%clk 0:00:18]} 39. Kf4 {[%clk 0:01:02]}  a5 {[%clk 0:00:18]} 40. Rg8 {[%clk 0:00:57]}  a4 {[%clk 0:00:18]} 41. Rg7 {[%clk 0:00:57]}  a3 {[%clk 0:00:18]} 42. b3 {[%clk 0:00:38]}  Rc7 {[%clk 0:00:13]} 43. Rg8 {[%clk 0:00:35]}  Re7 {[%clk 0:00:10]} 44. Rh8 {[%clk 0:00:35]}  Ba4 {[%clk 0:00:09]} 45. Ra8 {[%clk 0:00:32]}  Be8 {[%clk 0:00:09]} 46. Ra6+ {[%clk 0:00:32]}  Kc7 {[%clk 0:00:09]} 47. Ng4 {[%clk 0:00:31]}  Bc6 {[%clk 0:00:08]} 48. Ke5 {[%clk 0:00:30]}  Rf7 {[%clk 0:00:07]} 49. Nf6 {[%clk 0:00:30]}  Bb7 {[%clk 0:00:05]} 50. Rxe6 {[%clk 0:00:29]}  Bc8 {[%clk 0:00:05]} 51. Re8 {[%clk 0:00:27]}  Bd7 {[%clk 0:00:06]} 52. Rh8 {[%clk 0:00:26]}  Re7+ {[%clk 0:00:06]} 53. Kd5 {[%clk 0:00:26]}  Re2 {[%clk 0:00:06]} 54. Rxh7 {[%clk 0:00:26]}  Rxa2 {[%clk 0:00:07]} 55. Rxd7+ {[%clk 0:00:25]}  Kc8 {[%clk 0:00:08]} 56. Ra7 {[%clk 0:00:24]}  Kb8 {[%clk 0:00:07]} 57. Ra5 {[%clk 0:00:23]}  Rh2 {[%clk 0:00:07]} 58. h7 {[%clk 0:00:23]}  a2 {[%clk 0:00:07]} 59. Rxa2 {[%clk 0:00:23]} 1-0


[Site "https://www.chess.com"]

[Event "Titled Tuesday Blitz June 21 Late 2022"]
[White "Svane, Rasmus"]
[Black "Livaic, Leon"]
[WhiteFideId "4657101"]
[BlackFideId "14531534"]
[WhiteElo "2674"]
[BlackElo "2540"]
[Result "1-0"]
[Round "11"]
[TimeControl "180+1"]
[Date "2022.06.21"]
[WhiteClock "0:00:11"]
[BlackClock "0:00:02"]

1. Nf3 {[%clk 0:03:00]}  Nf6 {[%clk 0:03:00]} 2. g3 {[%clk 0:03:01]}  b6 {[%clk 0:03:00]} 3. Bg2 {[%clk 0:03:01]}  Bb7 {[%clk 0:03:01]} 4. O-O {[%clk 0:03:02]}  g6 {[%clk 0:03:02]} 5. d4 {[%clk 0:03:00]}  Bg7 {[%clk 0:03:01]} 6. c4 {[%clk 0:03:00]}  e6 {[%clk 0:02:53]} 7. Qc2 {[%clk 0:02:52]}  O-O {[%clk 0:02:47]} 8. Nc3 {[%clk 0:02:52]}  d6 {[%clk 0:02:46]} 9. e4 {[%clk 0:02:52]}  Nbd7 {[%clk 0:02:45]} 10. Be3 {[%clk 0:02:52]}  e5 {[%clk 0:02:38]} 11. Rad1 {[%clk 0:02:49]}  Re8 {[%clk 0:02:12]} 12. Rfe1 {[%clk 0:02:48]}  h6 {[%clk 0:02:07]} 13. h3 {[%clk 0:02:48]}  a5 {[%clk 0:02:03]} 14. b3 {[%clk 0:02:46]}  exd4 {[%clk 0:01:57]} 15. Nxd4 {[%clk 0:02:44]}  Nc5 {[%clk 0:01:57]} 16. Bf4 {[%clk 0:02:39]}  Nfd7 {[%clk 0:01:43]} 17. Nd5 {[%clk 0:02:27]}  Ne5 {[%clk 0:01:41]} 18. Bc1 {[%clk 0:02:22]}  a4 {[%clk 0:01:39]} 19. b4 {[%clk 0:02:17]}  Ne6 {[%clk 0:01:39]} 20. Bb2 {[%clk 0:02:13]}  c5 {[%clk 0:01:24]} 21. bxc5 {[%clk 0:01:56]}  bxc5 {[%clk 0:01:24]} 22. Nb5 {[%clk 0:01:49]}  Nc6 {[%clk 0:01:24]} 23. Bxg7 {[%clk 0:01:48]}  Kxg7 {[%clk 0:01:24]} 24. Qb2+ {[%clk 0:01:44]}  f6 {[%clk 0:01:14]} 25. Nxd6 {[%clk 0:01:40]}  Qxd6 {[%clk 0:00:54]} 26. Nxf6 {[%clk 0:01:11]}  Ned4 {[%clk 0:00:23]} 27. Nxe8+ {[%clk 0:01:11]}  Rxe8 {[%clk 0:00:24]} 28. Qxb7+ {[%clk 0:01:11]}  Re7 {[%clk 0:00:22]} 29. Qb6 {[%clk 0:01:06]}  Re6 {[%clk 0:00:11]} 30. e5 {[%clk 0:01:00]}  Qe7 {[%clk 0:00:10]} 31. Qb2 {[%clk 0:00:27]}  Nxe5 {[%clk 0:00:10]} 32. Kh1 {[%clk 0:00:25]}  Nxc4 {[%clk 0:00:07]} 33. Rxe6 {[%clk 0:00:20]}  Qxe6 {[%clk 0:00:08]} 34. Qc3 {[%clk 0:00:20]}  Qf7 {[%clk 0:00:03]} 35. Rc1 {[%clk 0:00:16]}  Ne5 {[%clk 0:00:01]} 36. Qxc5 {[%clk 0:00:16]}  Ndf3 {[%clk 0:00:01]} 37. Qc7 {[%clk 0:00:13]}  Nd7 {[%clk 0:00:01]} 38. Rd1 {[%clk 0:00:11]}  Nfe5 {[%clk 0:00:01]} 39. Bc6 {[%clk 0:00:09]}  Nxc6 {[%clk 0:00:01]} 40. Rxd7 {[%clk 0:00:09]}  Ne7 {[%clk 0:00:01]} 41. Rxe7 {[%clk 0:00:09]}  Kh7 {[%clk 0:00:02]} 42. Rxf7+ {[%clk 0:00:10]}  Kh8 {[%clk 0:00:02]} 43. Rh7+ {[%clk 0:00:10]}  Kg8 {[%clk 0:00:02]} 44. Qg7# {[%clk 0:00:11]} 1-0


[Site "https://www.chess.com"]